bitfinex-derivatives/quotes_ETHF0:USTF0_20250316
["timestamp","ask_amount","ask_price","bid_price","bid_amount"]
[1742089655008,1.03791,1926.9,1926.6,2.6568]
[1742089655009,2.44941,1926.9,1926.8,1.3938]
[1742089658196,1.4115,1926.9,1926.5,3.2078]
[1742089658401,3.11246,1926.8,1926.7,1.3741]
[1742089658900,1.03807,1926.6,1926.5,3.2078]
[1742089659203,1.03813,1926.5,1926.4,1.373]
[1742089660101,1.03813,1926.5,1926.4,2.7471]
[1742089660307,1.0381,1926.6,1926.4,2.7471]
[1742089660510,1.0381,1926.6,1926.5,1.3741]
[1742089660909,2.394,1926.6,1926.5,1.3741]
[1742089661309,2.394,1926.6,1926.5,2.41223]
[1742089662003,2.394,1926.6,1926.5,1.3741]
[1742089662203,1.74606,1926.7,1926.5,2.41223]
[1742089662413,2.0287,1926.7,1926.5,2.41223]
[1742089662611,3.06672,1926.7,1926.6,1.4112]
[1742089663315,1.03802,1926.7,1926.6,1.4112]
[1742089664008,2.35872,1926.7,1926.6,1.4112]
[1742089666715,1.03802,1926.7,1926.6,1.4112]
[1742089668117,2.48562,1926.7,1926.6,1.4112]
[1742089669314,1.03813,1926.5,1926.4,3.9008]
[1742089669920,1.03813,1926.5,1926.4,0.693]
[1742089670122,1.70823,1926.5,1926.4,0.693]
[1742089670420,1.03818,1926.4,1926.3,1.0382]
[1742089670620,2.42788,1926.4,1926.2,4.92655]
[1742089671322,2.42791,1926.4,1926.2,4.92655]
[1742089671821,2.42791,1926.4,1926.3,1.3771]
[1742089672013,1.03821,1926.4,1926.3,1.3771]
[1742089675907,1.03821,1926.4,1926.3,2.0681]
[1742089676516,6.09068025,1926.5,1926.3,3.10633]
[1742089676720,6.09068025,1926.5,1926.4,1.3239]
[1742089676922,5.11627,1926.5,1926.4,1.3239]
[1742089679820,1.03823,1926.3,1926.2,3.2078]
[1742089681114,1.03823,1926.3,1926.2,4.6519]
[1742089681324,1.03813,1926.5,1926.4,1.03816]
[1742089681524,1.03818,1926.4,1926.3,3.182]
[1742089681822,2.01251025,1926.6,1926.4,1.03818]
[1742089682018,2.69205424,1926.6,1926.5,1.4441]
[1742089682219,1.0381,1926.6,1926.5,1.4441]
[1742089683418,2.62836449,1926.8,1926.5,1.4441]
[1742089683625,1.03799,1926.8,1926.6,1.72295]
[1742089683823,1.03799,1926.8,1926.7,1.4532]
[1742089684330,10.75500424,1926.9,1926.7,2.49122]
[1742089684515,0.97441025,1926.8,1926.7,2.49122]
[1742089684818,0.97441025,1926.8,1926.7,1.03802]
[1742089685021,4.24575,1926.9,1926.7,1.03802]
[1742089685223,5.19463328,1926.9,1926.7,1.03802]
[1742089685523,1.03796,1926.8,1926.6,0.6849]
[1742089685716,1.03796,1926.8,1926.7,1.03802]
[1742089685915,1.03796,1926.8,1926.6,1.72294]
[1742089686317,2.41496,1926.8,1926.6,1.72294]
[1742089686528,1.03802,1926.7,1926.6,0.6849]
[1742089686823,2.41502,1926.7,1926.6,0.6849]
[1742089687152,3.12492,1926.7,1926.6,0.6849]
[1742089687315,2.41502,1926.7,1926.6,0.6849]
[1742089687812,1.03802,1926.7,1926.6,0.6849]
[1742089688425,2.41502,1926.7,1926.6,0.6849]
[1742089690729,1.03813,1926.5,1926.4,3.2078]
[1742089691133,1.03813,1926.5,1926.4,4.24597]
[1742089691429,2.3583,1926.6,1926.4,4.24597]
[1742089691630,1.3202,1926.6,1926.4,3.2078]
[1742089691823,1.3821,1926.5,1926.4,4.24597]
[1742089692131,2.42023,1926.5,1926.4,3.2078]
[1742089692331,2.42023,1926.5,1926.4,4.24598]
[1742089692633,1.03805,1926.7,1926.5,1.03813]
[1742089692828,1.03807,1926.6,1926.5,1.72153]
[1742089694028,3.67149324,1926.8,1926.6,1.03803]
[1742089694228,3.06671996,1926.8,1926.5,0.6834]
[1742089694532,2.42017,1926.7,1926.5,1.7215]
[1742089694829,1.98689328,1926.8,1926.6,1.03807]
[1742089695133,1.03807,1926.7,1926.6,1.03807]
[1742089695332,2.42827,1926.7,1926.5,1.72147]
[1742089696126,1.7019,1926.8,1926.6,1.03807]
[1742089696331,3.0921,1926.8,1926.6,1.03803]
[1742089696731,1.03802,1926.7,1926.6,1.03803]
[1742089697028,1.03807,1926.6,1926.5,1.72149]
[1742089697433,2.42826,1926.7,1926.5,1.72149]
[1742089697831,2.42826,1926.7,1926.5,0.6834]
[1742089698135,1.03807,1926.6,1926.5,1.7215]
[1742089698638,1.03807,1926.6,1926.5,0.6834]
[1742089698835,1.03807,1926.6,1926.5,1.72153]
[1742089700033,1.03807,1926.6,1926.5,2.39913]
[1742089700236,3.13606,1926.7,1926.5,2.39913]
[1742089700636,1.03807,1926.6,1926.5,2.39913]
[1742089700840,2.38877,1926.6,1926.5,1.361]
[1742089701132,2.38877,1926.6,1926.5,2.39913]
[1742089701333,1.3507,1926.6,1926.5,2.39913]
[1742089701640,3.66734386,1926.8,1926.5,1.361]
[1742089701837,2.01271996,1926.8,1926.7,1.03802]
[1742089702226,2.32541996,1926.8,1926.7,1.03802]
[1742089702434,2.71544996,1926.9,1926.6,3.2078]
[1742089702639,2.01264996,1926.9,1926.7,1.03797]
[1742089702839,2.01264996,1926.9,1926.8,0.6875]
[1742089703136,1.3507,1926.9,1926.8,2.40956]
[1742089703440,3.33994174,1927.0,1926.8,2.40954]
[1742089703639,1.3507,1926.9,1926.8,2.40954]
[1742089705331,2.38861,1926.9,1926.8,2.40954]
[1742089706328,1.03796,1926.8,1926.7,1.4236]
[1742089706532,2.46326,1926.8,1926.7,1.4236]
[1742089706734,5.87026,1926.8,1926.7,1.4236]
[1742089707339,6.57216,1926.8,1926.7,1.4236]
[1742089708942,1.03802,1926.7,1926.6,3.2078]
[1742089709144,3.10672,1926.7,1926.6,4.5258]
[1742089710035,3.10672,1926.7,1926.6,1.318]
[1742089712540,6.03250324,1926.8,1926.6,1.318]
[1742089712541,2.62550324,1926.8,1926.6,1.318]
[1742089712840,2.62550324,1926.8,1926.7,1.03802]
[1742089712841,0.97471996,1926.8,1926.7,1.03802]
[1742089713237,3.06173,1926.9,1926.8,1.03796]
[1742089713436,3.06173,1926.9,1926.8,1.72006]
[1742089713944,3.06173,1926.9,1926.8,0.6821]
[1742089714337,3.06173,1926.9,1926.8,2.0349]
[1742089714539,3.06173,1926.9,1926.8,3.07286]
[1742089715147,3.06173,1926.9,1926.8,2.0349]
[1742089716037,3.06173,1926.9,1926.8,1.3528]
[1742089720058,1.3239,1926.9,1926.8,2.39076]
[1742089720259,2.44168788,1927.0,1926.9,1.03791]
[1742089720453,2.44168788,1927.0,1926.9,3.81581]
[1742089720650,2.46058788,1927.0,1926.9,3.81581]
[1742089722252,4.11568196,1927.0,1926.9,3.81581]
[1742089722449,4.11568196,1927.0,1926.9,2.7779]
[1742089722654,3.67550192,1927.0,1926.9,2.7779]
[1742089722956,2.02040784,1927.0,1926.9,2.7779]
[1742089723160,3.33490784,1927.0,1926.9,2.7779]
[1742089723459,2.36018788,1927.0,1926.9,2.7779]
[1742089723961,2.36018788,1927.0,1926.9,3.81581]
[1742089724555,2.36018788,1927.0,1926.9,2.7779]
[1742089725061,2.36018788,1927.0,1926.9,3.81581]
[1742089725248,1.32229788,1927.0,1926.9,3.81581]
[1742089726056,0.00779788,1927.0,1926.9,3.81581]
[1742089730065,1.04565788,1927.0,1926.9,3.81581]
[1742089730365,1.04565788,1927.0,1926.9,2.7779]
[1742089730562,1.04565788,1927.0,1926.9,3.81581]
[1742089730756,2.37105788,1927.0,1926.9,3.81581]
[1742089731155,3.05005788,1927.0,1926.9,3.81581]
[1742089733062,2.01219788,1927.0,1926.9,3.81581]
[1742089733368,0.00779788,1927.0,1926.9,3.81581]
[1742089744664,1.3183,1927.3,1927.2,1.03775]
[1742089745164,2.356,1927.3,1927.2,1.03775]
[1742089745365,2.356,1927.3,1927.2,2.43175]
[1742089745564,2.356,1927.3,1927.2,3.85445]
[1742089746865,2.356,1927.3,1927.2,2.8167]
[1742089747169,2.356,1927.3,1927.2,1.4227]
[1742089748471,1.03775,1927.2,1927.1,4.25336788]
[1742089748774,2.47935,1927.2,1927.1,3.21559788]
[1742089748962,2.47935,1927.2,1927.1,4.25339788]
[1742089749267,2.47935,1927.2,1927.1,5.65269788]
[1742089749773,1.68026999,1927.3,1927.2,1.03775]
[1742089750073,0.98251784,1927.4,1927.3,1.0377]
[1742089750372,0.98251784,1927.4,1927.3,5.5904]
[1742089750575,0.00779788,1927.4,1927.3,5.5904]
[1742089752776,1.45139788,1927.4,1927.3,5.5904]
[1742089753372,0.00779788,1927.4,1927.3,5.5904]
[1742089765483,1.6834,1927.8,1927.7,1.03748]
[1742089765683,3.0213,1927.8,1927.7,4.24528]
[1742089766386,3.0213,1927.8,1927.7,5.64138]
[1742089769885,4.05873,1927.8,1927.7,5.64138]
[1742089770483,4.05873,1927.8,1927.7,4.24528]
[1742089770784,4.05873,1927.8,1927.7,1.03748]
[1742089771481,3.0213,1927.8,1927.7,1.03748]
[1742089772687,3.0213,1927.8,1927.7,5.60488]
[1742089777291,4.05873,1927.8,1927.7,5.60488]
[1742089777597,3.0213,1927.8,1927.7,5.60488]
[1742089777894,4.05873,1927.8,1927.7,5.60488]
[1742089778094,3.0213,1927.8,1927.7,2.39708]
[1742089778887,4.05873,1927.8,1927.7,2.39708]
[1742089779195,3.0213,1927.8,1927.7,2.39708]
[1742089780184,4.05873,1927.8,1927.7,2.39708]
[1742089780385,3.0213,1927.8,1927.7,2.39708]
[1742089780683,4.05873,1927.8,1927.7,2.39708]
[1742089780888,3.0213,1927.8,1927.7,2.39708]
[1742089781796,4.05873,1927.8,1927.7,2.39708]
[1742089783196,1.03752,1927.7,1927.6,1.03751]
[1742089783388,1.03753,1927.6,1927.5,4.24536]
[1742089783589,0.6625,1927.6,1927.5,4.24536]
[1742089783791,1.70003,1927.6,1927.5,4.24536]
[1742089784096,3.01313,1927.6,1927.5,4.24536]
[1742089784494,1.9756,1927.6,1927.5,4.24536]
[1742089788798,1.9756,1927.6,1927.5,5.58726]
[1742089789394,3.01313,1927.6,1927.5,5.58726]
[1742089790098,3.01313,1927.6,1927.5,1.03756]
[1742089790501,1.03759,1927.5,1927.4,2.37949]
[1742089790693,2.0345,1927.5,1927.4,2.37949]
[1742089792710,3.07209,1927.5,1927.4,1.3419]
[1742089793606,3.07209,1927.5,1927.4,2.37954]
[1742089795700,3.07209,1927.5,1927.3,3.2078]
[1742089795701,1.03764,1927.4,1927.3,3.2078]
[1742089795907,1.4288,1927.4,1927.3,4.2455]
[1742089796804,1.4288,1927.4,1927.3,5.6798]
[1742089797006,2.46644,1927.4,1927.3,5.6798]
[1742089798907,1.4288,1927.4,1927.3,5.6798]
[1742089800907,0.7156,1927.5,1927.4,1.03764]
[1742089801106,2.0597,1927.5,1927.4,2.41844]
[1742089823635,1.03764,1927.4,1927.3,3.2078]
[1742089823937,2.43874,1927.4,1927.3,3.2078]
[1742089825229,1.03773,1927.3,1927.2,1.03773]
[1742089825429,2.0644,1927.3,1927.1,3.21559788]
[1742089825632,0.6698,1927.2,1927.1,4.25339788]
[1742089825829,2.0326,1927.2,1927.1,4.25339788]
[1742089827241,3.07035,1927.2,1927.1,1.04559788]
[1742089827438,2.0326,1927.2,1927.1,1.04559788]
[1742089827741,2.0326,1927.2,1927.1,4.25339788]
[1742089828736,2.0326,1927.2,1927.1,1.04559788]
[1742089828938,2.0326,1927.2,1927.1,4.25339788]
[1742089829241,2.0326,1927.2,1927.1,1.04559788]
[1742089834536,3.07035,1927.2,1927.1,0.00779788]
[1742089834839,6.47035,1927.2,1927.1,0.00779788]
[1742089836336,7.42058645,1927.2,1927.1,0.00779788]
[1742089836636,1.03786,1927.0,1926.9,4.24567]
[1742089837039,1.03786,1927.0,1926.9,4.24571]
[1742089837242,1.71646,1927.0,1926.9,3.2078]
[1742089838236,1.71646,1927.0,1926.9,4.6222]
[1742089838542,1.71646,1927.0,1926.9,1.4144]
[1742089839144,1.71646,1927.0,1926.9,2.45231]
[1742089839644,1.71646,1927.0,1926.9,1.4144]
[1742089843046,3.14996,1927.0,1926.9,1.4144]
[1742089847649,4.0985023,1927.0,1926.9,1.4144]
[1742089847844,3.14996,1927.0,1926.9,1.4144]
[1742089848152,1.03807,1926.6,1926.5,4.2459]
[1742089848753,1.03807,1926.6,1926.5,4.6208]
[1742089849250,3.11607,1926.6,1926.5,4.6208]
[1742089850152,3.11607,1926.6,1926.5,1.413]
[1742089851846,1.03813,1926.5,1926.4,0.00779788]
[1742089852047,4.7679,1926.5,1926.4,2.48367788]
[1742089852243,1.03802,1926.7,1926.6,1.03807]
[1742089852451,4.43802,1926.7,1926.6,1.03807]
[1742089852644,1.03807,1926.6,1926.5,2.47578]
[1742089852851,1.03807,1926.6,1926.5,2.47583]
[1742089853158,1.03801,1926.8,1926.7,1.03802]
[1742089853350,3.4,1926.8,1926.7,1.03802]
[1742089853546,1.03802,1926.7,1926.6,1.03803]
[1742089853751,1.03802,1926.7,1926.6,2.47963]
[1742089854154,1.03802,1926.7,1926.6,2.47962]
[1742089854352,1.03802,1926.7,1926.6,2.47963]
[1742089856761,2.38372,1926.7,1926.6,1.4416]
[1742089861565,2.38372,1926.7,1926.6,2.47967]
[1742089861774,2.38372,1926.7,1926.6,1.4416]
[1742089861980,2.38372,1926.7,1926.6,2.47967]
[1742089862163,2.38372,1926.7,1926.6,1.4416]
[1742089862562,2.38372,1926.7,1926.6,2.47967]
[1742089862767,2.38372,1926.7,1926.6,1.4416]
[1742089863275,2.38372,1926.7,1926.6,2.47967]
[1742089863480,2.38372,1926.7,1926.6,1.4416]
[1742089863977,2.38372,1926.7,1926.6,2.47967]
[1742089864564,2.38372,1926.7,1926.6,1.4416]
[1742089866766,2.38372,1926.7,1926.6,2.47967]
[1742089867265,1.03802,1926.7,1926.6,2.47967]
[1742089867882,2.39662,1926.7,1926.6,2.47967]
[1742089868773,1.3586,1926.7,1926.6,2.47967]
[1742089869881,2.39662,1926.7,1926.6,2.47967]
[1742089870083,2.39662,1926.7,1926.6,1.4416]
[1742089870979,2.62925395,1926.8,1926.6,1.4416]
[1742089871288,2.62925395,1926.8,1926.7,1.72362]
[1742089871289,2.01242432,1926.8,1926.7,1.72362]
[1742089871587,1.03796,1926.8,1926.7,2.42892]
[1742089871974,2.46344,1926.9,1926.8,1.03796]
[1742089872179,2.46344,1926.9,1926.8,1.3947]
[1742089874083,2.59492,1926.8,1926.4,0.00779788]
[1742089874277,6.68798,1926.7,1926.4,0.00779788]
[1742089874485,1.03813,1926.5,1926.4,1.45359788]
[1742089874785,1.03813,1926.5,1926.4,2.16739788]
[1742089875288,2.34703,1926.5,1926.4,2.16739788]
[1742089878683,2.34703,1926.5,1926.4,1.45359788]
[1742089885400,2.34703,1926.5,1926.4,0.00779788]
[1742089886292,1.03823,1926.3,1926.2,1.4215]
[1742089886496,4.43723,1926.3,1926.2,1.35519162]
[1742089886899,5.87563,1926.3,1926.2,1.35519162]
[1742089887100,6.85009432,1926.3,1926.2,1.35519162]
[1742089887899,6.85009432,1926.3,1926.1,0.00779788]
[1742089887900,1.03829,1926.2,1926.1,0.00779788]
[1742089888105,2.47669,1926.2,1926.1,0.00779788]
[1742089889605,2.47669,1926.2,1926.1,1.34499788]
[1742089890195,5.76605505,1926.2,1926.1,0.00779788]
[1742089890499,7.69075416,1926.2,1926.1,0.00779788]
[1742089891000,1.03856,1925.7,1925.6,1.3372]
[1742089891693,2.47096,1925.7,1925.6,1.3372]
[1742089893088,1.03861,1925.6,1925.5,0.00779788]
[1742089893395,1.03861,1925.6,1925.5,1.37869788]
[1742089893396,2.42191,1925.6,1925.5,1.37869788]
[1742089894507,5.62971,1925.6,1925.5,0.00779788]
[1742089899103,8.12971,1925.6,1925.5,7.88e-06]
[1742089899298,1.03888,1925.1,1925.0,1.4086]
[1742089899499,4.43788,1925.1,1925.0,1.4086]
[1742089900205,5.75428,1925.1,1925.0,1.4086]
[1742089901906,8.96208,1925.1,1925.0,1.4086]
[1742089902506,9.67108,1925.1,1925.0,1.4086]
[1742089904908,4.43788,1925.1,1925.0,1.4086]
[1742089905606,5.76998,1925.1,1925.0,1.4086]
[1742089907504,8.97778,1925.1,1925.0,1.4086]
[1742089908503,1.03894,1925.0,1924.9,0.00779788]
[1742089908810,3.09514,1925.0,1924.9,1.40159788]
[1742089911012,3.09514,1925.0,1924.9,0.00779788]
[1742089912004,1.03904,1924.8,1924.7,0.7185]
[1742089912205,4.43904,1924.8,1924.7,0.7185]
[1742089912601,6.50484,1924.8,1924.7,0.7185]
[1742089913005,6.50484,1924.8,1924.6,0.7091]
[1742089913006,1.0391,1924.7,1924.6,0.7091]
[1742089913202,1.0391,1924.7,1924.6,0.71429856]
[1742089913203,3.0713,1924.7,1924.6,0.71429856]
[1742089914505,2.4043,1924.7,1924.6,0.71429856]
[1742089915203,2.4043,1924.7,1924.6,0.00519856]
[1742089916809,8.1121,1924.7,1924.6,0.00519856]
[1742089917504,8.19596307,1924.7,1924.6,0.00519856]
[1742089917709,1.03951,1924.0,1923.5,3.2078]
[1742089917904,1.03951,1924.0,1923.4,2.59949]
[1742089917905,3.4,1924.1,1923.8,3.9244]
[1742089918104,1.03951,1924.0,1923.9,0.7053]
[1742089918304,2.48111,1924.0,1923.9,2.0202]
[1742089918905,1.03951,1924.0,1923.9,2.0202]
[1742089919312,4.44722788,1924.1,1923.9,3.0597]
[1742089919611,4.44722788,1924.1,1924.0,1.4179]
[1742089919909,7.65502788,1924.1,1924.0,1.4179]
[1742089920112,1.03948,1924.0,1923.9,0.7053]
[1742089920316,2.46308,1924.0,1923.9,1.4179]
[1742089920915,1.03953,1923.9,1923.8,0.7166]
[1742089921109,1.03958,1923.8,1923.7,1.4179]
[1742089921421,4.44058,1923.8,1923.7,1.4179]
[1742089922521,5.901,1923.8,1922.9,3.2078]
[1742089922709,1.04007,1922.9,1922.8,1.3321]
[1742089923016,4.44107,1922.9,1922.8,1.3321]
[1742089924213,4.44107,1922.9,1922.2,2.60103]
[1742089924214,1.04037,1922.4,1922.1,1.04049]
[1742089924421,3.407,1922.3,1922.1,1.3321]
[1742089924727,3.407,1922.3,1922.2,0.6653]
[1742089924926,3.407,1922.3,1922.2,1.70575]
[1742089925125,3.2078,1922.7,1922.2,3.03785]
[1742089925329,1.04036,1922.4,1922.2,3.03785]
[1742089925622,3.409,1922.5,1922.0,3.2078]
[1742089925821,1.04034,1922.4,1922.1,2.43337]
[1742089926024,1.04039,1922.3,1922.2,1.3929]
[1742089926231,3.411,1922.5,1922.3,1.04037]
[1742089926531,3.411,1922.5,1922.4,2.43324]
[1742089926724,1.04034,1922.4,1922.3,0.7097]
[1742089927433,1.0405,1922.1,1922.0,4.6007]
[1742089928034,4.46549,1922.2,1922.0,5.64126]
[1742089928231,1.04066,1921.9,1921.7,1.04069]
[1742089928433,1.04066,1921.9,1921.6,1.04073]
[1742089928634,1.04065,1921.9,1921.7,3.09662]
[1742089928833,0.00779788,1921.9,1921.7,2.0559]
[1742089929034,1.04844788,1921.9,1921.7,3.09662]
[1742089929235,0.00779788,1921.9,1921.8,1.04067]
[1742089929925,1.04089,1921.4,1921.2,4.24876]
[1742089930126,4.53577,1921.6,1921.5,1.3532]
[1742089930732,3.495,1921.6,1921.5,1.3532]
[1742089930941,4.53577,1921.6,1921.5,1.3532]
[1742089931740,3.495,1921.6,1921.5,2.39403]
[1742089932047,3.2078,1921.8,1921.5,1.3532]
[1742089932234,3.51479788,1921.9,1921.8,1.04067]
[1742089932542,3.51479788,1921.9,1921.8,2.6937]
[1742089932543,4.55540788,1921.9,1921.8,2.6937]
[1742089932728,3.51479788,1921.9,1921.8,3.73437]
[1742089934939,0.00779788,1921.9,1921.8,3.73437]
[1742089935946,0.00779788,1921.9,1921.8,6.23437]
[1742089939150,2.43432,1922.3,1922.2,1.04045]
[1742089939151,3.499,1922.3,1922.2,1.04045]
[1742089939745,3.2078,1922.4,1922.3,1.04039]
[1742089939941,4.24814,1922.4,1922.3,1.04039]
[1742089940341,4.24814,1922.4,1922.2,1.72991788]
[1742089940542,4.24814,1922.4,1922.3,2.40729]
[1742089940749,5.88164,1922.4,1922.3,2.40729]
[1742089941045,5.88164,1922.4,1922.3,1.3669]
[1742089941639,5.88164,1922.4,1922.3,2.40729]
[1742089942144,5.88164,1922.4,1922.2,1.72990788]
[1742089942344,4.8413,1922.4,1922.2,1.72990788]
[1742089942534,1.04039,1922.3,1922.2,0.68949788]
[1742089942740,2.44059,1922.3,1922.2,1.45639788]
[1742089944741,2.44059,1922.3,1922.2,2.49684788]
[1742089945445,2.44059,1922.3,1922.2,1.45639788]
[1742089945646,2.44059,1922.3,1922.2,2.49684788]
[1742089945848,4.24816,1922.4,1922.3,1.04039]
[1742089946044,3.2078,1922.8,1922.7,1.04018]
[1742089947837,0.00779788,1922.9,1922.8,1.04012]
[1742089948343,1.35699788,1922.9,1922.8,1.04012]
[1742089948543,1.35699788,1922.9,1922.8,2.35952]
[1742089948745,1.35699788,1922.9,1922.8,3.05452]
[1742089949445,0.00779788,1922.9,1922.8,3.05452]
[1742089954657,3.2078,1923.3,1923.2,1.03991]
[1742089955656,4.5308,1923.3,1923.2,1.03991]
[1742089956650,1.323,1923.3,1923.2,1.03991]
[1742089957051,1.323,1923.3,1923.2,3.06871]
[1742089957352,0.00779788,1923.4,1923.3,1.03985]
[1742089957555,0.00779788,1923.4,1923.3,4.24765]
[1742089958657,0.00779788,1923.4,1923.3,4.96605]
[1742089959771,4.6117,1923.8,1923.7,1.03964]
[1742089960154,1.4039,1923.8,1923.7,1.03964]
[1742089960556,2.44348,1923.8,1923.7,1.03964]
[1742089960757,2.0898,1923.8,1923.7,1.03964]
[1742089963863,1.4039,1923.8,1923.7,2.38854]
[1742089964065,0.00779788,1923.9,1923.8,1.03958]
[1742089964655,0.00779788,1923.9,1923.8,1.72548]
[1742089964861,3.2078,1924.6,1924.0,1.03948]
[1742089965058,1.74008,1924.4,1924.2,1.03934]
[1742089965364,1.03937,1924.2,1923.8,3.8937]
[1742089965554,1.3452,1924.1,1924.0,1.03946]
[1742089968167,0.00779788,1924.2,1924.1,1.03942]
[1742089969566,0.00779788,1924.2,1924.1,3.53942]
[1742089969762,0.00779788,1924.2,1924.0,3.2078]
[1742089969763,2.39877,1924.6,1924.4,1.03926]
[1742089970062,1.3596,1924.6,1924.4,1.03925]
[1742089970371,2.39877,1924.6,1924.4,1.03922]
[1742089970671,2.39877,1924.6,1924.5,1.03921]
[1742089971073,2.39877,1924.6,1924.4,1.3506]
[1742089971371,2.39877,1924.6,1924.5,1.03921]
[1742089971763,1.3596,1924.6,1924.5,1.03921]
[1742089972261,2.39875,1924.6,1924.4,2.38982]
[1742089972456,2.39875,1924.6,1924.4,1.3506]
[1742089972663,2.39875,1924.6,1924.4,2.38982]
[1742089972972,1.3596,1924.6,1924.5,1.03921]
[1742089973164,2.39875,1924.6,1924.5,1.03921]
[1742089973665,2.39878,1924.6,1924.4,2.38983]
[1742089973861,1.03921,1924.5,1924.3,3.2078]
[1742089974062,2.41476,1924.4,1924.3,3.2078]
[1742089974268,1.03941,1924.2,1924.0,1.03943]
[1742089974467,1.4436,1924.1,1924.0,1.03943]
[1742089982978,1.03953,1923.9,1923.6,3.21559788]
[1742089983186,1.4219,1923.8,1923.7,2.48464]
[1742089983374,1.4219,1923.8,1923.6,3.21559788]
[1742089983680,0.6748,1923.7,1923.6,4.25528788]
[1742089983884,1.3955,1923.7,1923.6,4.25528788]
[1742089984081,1.3955,1923.7,1923.6,1.04748788]
[1742089984082,2.8174,1923.7,1923.6,1.04748788]
[1742089985381,2.8174,1923.7,1923.6,2.49248788]
[1742089991289,1.4219,1923.7,1923.6,5.70028788]
[1742089992490,0.7184,1924.0,1923.9,1.03953]
[1742089992684,2.0436,1924.0,1923.9,1.03953]
[1742089992883,1.3252,1924.0,1923.9,4.24733]
[1742089993285,1.3252,1924.0,1923.9,4.93913]
[1742089993480,0.7247,1924.2,1924.1,1.03942]
[1742089993786,2.0499,1924.2,1924.1,1.03942]
[1742089994594,3.08927,1924.2,1924.1,1.03942]
[1742089995090,2.0499,1924.2,1924.1,1.03942]
[1742089995693,3.08927,1924.2,1924.1,1.03942]
[1742089995887,3.08927,1924.2,1924.0,1.4143]
[1742089996093,2.36282,1924.1,1924.0,1.03944]
[1742089996292,1.3234,1924.1,1923.8,1.3841]
[1742089996593,1.3234,1924.0,1923.9,1.0395]
[1742089998095,2.36288,1924.0,1923.9,1.0395]
[1742089998394,1.3234,1924.0,1923.9,1.0395]
[1742089999290,2.36291,1924.0,1923.8,2.42365]
[1742089999497,0.7013,1923.9,1923.8,2.42365]
[1742089999686,2.1162,1923.9,1923.8,2.42365]
[1742090000993,1.4149,1923.9,1923.8,2.42365]
[1742090005895,5.19073,1924.1,1924.0,1.03948]
[1742090006092,4.1513,1924.1,1924.0,1.03948]
[1742090006292,3.9325,1924.2,1924.1,1.03942]
[1742090006890,0.7247,1924.2,1924.1,1.03942]
[1742090007390,3.19897,1924.2,1924.1,1.03942]
[1742090007599,5.3674,1924.2,1924.1,1.03942]
[1742090008099,6.34408384,1924.2,1924.0,2.41224]
[1742090008399,1.3504,1924.1,1923.8,1.03954]
[1742090008702,1.74302,1924.0,1923.8,2.41334]
[1742090008894,1.3504,1923.9,1923.8,2.41334]
[1742090019212,0.7035,1924.0,1923.9,1.03953]
[1742090019408,1.3406,1924.1,1924.0,1.03944]
[1742090019604,2.38002,1924.1,1924.0,1.3637]
[1742090019818,2.38002,1924.1,1924.0,2.40318]
[1742090020114,2.38002,1924.1,1924.0,1.3637]
[1742090021009,1.03958,1923.8,1923.7,3.2078]
[1742090021211,4.8677,1924.0,1923.7,5.63754]
[1742090021415,1.03958,1923.8,1923.7,5.63754]
[1742090021820,1.74088,1923.8,1923.7,5.63754]
[1742090022010,3.17358,1923.8,1923.7,4.5979]
[1742090022317,3.17358,1923.8,1923.7,1.3901]
[1742090022818,2.134,1923.8,1923.7,2.42974]
[1742090023912,3.17358,1923.8,1923.7,2.42974]
[1742090024217,3.17358,1923.8,1923.7,1.3901]
[1742090024417,2.134,1923.8,1923.7,2.42974]
[1742090025015,1.4327,1923.8,1923.7,2.42974]
[1742090025321,3.30064613,1923.9,1923.8,1.03958]
[1742090025621,3.38886969,1923.9,1923.8,2.1487]
[1742090025917,4.34018613,1923.9,1923.8,2.1487]
[1742090026118,4.34018613,1923.9,1923.8,3.18828]
[1742090026521,4.34018613,1923.9,1923.8,2.1487]
[1742090026722,5.74238613,1923.9,1923.8,2.1487]
[1742090027412,8.95018613,1923.9,1923.8,2.1487]
[1742090027813,8.95018613,1923.9,1923.8,3.18828]
[1742090028424,8.95018613,1923.9,1923.8,2.1487]
[1742090029720,8.95018613,1923.9,1923.8,1.4265]
[1742090029920,1.03958,1923.8,1923.7,1.0396]
[1742090030114,2.43168,1923.8,1923.7,1.0396]
[1742090030515,2.43168,1923.8,1923.7,2.4601]
[1742090030713,2.43168,1923.8,1923.7,1.4205]
[1742090031224,2.43173,1923.8,1923.6,0.00779788]
[1742090031426,2.0605,1923.7,1923.6,2.46794788]
[1742090032016,1.3921,1923.7,1923.6,2.46794788]
[1742090032221,1.3921,1923.7,1923.6,3.17094788]
[1742090034122,6.52230028,1923.9,1923.8,1.03958]
[1742090034323,4.5943,1923.9,1923.8,1.03958]
[1742090035521,2.7563,1923.9,1923.8,1.03958]
[1742090035716,1.3698,1923.9,1923.8,1.03958]
[1742090036622,2.0475,1923.9,1923.8,1.03958]
[1742090039228,1.3698,1923.9,1923.8,1.03958]
[1742090040130,1.92908326,1924.0,1923.9,1.03953]
[1742090040327,0.97721804,1924.0,1923.9,1.03953]
[1742090040630,9.94859761,1924.1,1924.0,1.03948]
[1742090040830,8.60949761,1924.1,1924.0,1.03948]
[1742090041028,6.6178,1924.1,1924.0,1.03948]
[1742090041227,7.59541167,1924.1,1924.0,1.03948]
[1742090041424,7.59541167,1924.1,1924.0,2.39578]
[1742090041925,7.57006761,1924.1,1924.0,2.39578]
[1742090042228,8.54767928,1924.1,1924.0,2.39578]